fUST/lending_fUST_20250707
["ID","MTS","AMOUNT","RATE_DAILY","PERIOD"]
[370052259,1751866235079,-373.63215116,0.00019329,2]
[370052260,1751866235089,-1546.12331568,0.00019383,2]
[370052261,1751866235098,-460.0,0.00019491,2]
[370052262,1751866235107,-460.0,0.00019491,2]
[370052263,1751866235117,-809.94,0.00019491,2]
[370052264,1751866235126,-644.53,0.00019492,2]
[370052265,1751866235136,-460.0,0.00019492,2]
[370052266,1751866235145,-364.954889,0.00019492,2]
[370052267,1751866235155,-636.5,0.00019495,2]
[370052268,1751866235164,-460.0,0.00019495,2]
[370052269,1751866235173,-774.34,0.00019495,2]
[370052270,1751866235184,-460.0,0.00019496,2]
[370052271,1751866235193,-460.0,0.00019517,2]
[370052272,1751866235202,-1546.12331568,0.00019624,2]
[370052273,1751866235212,-412.27063353,0.00019765,2]
[370052274,1751866235222,-460.0,0.00019765,2]
[370052275,1751866235231,-460.0,0.00019765,2]
[370052276,1751866235241,-809.94,0.00019765,2]
[370052277,1751866235250,-644.53,0.00019766,2]
[370052278,1751866235260,-460.0,0.00019766,2]
[370052279,1751866235270,-636.5,0.00019769,2]
[370052280,1751866235279,-460.0,0.00019769,2]
[370052281,1751866235288,-774.34,0.00019769,2]
[370052282,1751866235298,-406.78679669,0.0001977,2]
[370052283,1751866235307,-180.7022225,0.00019791,2]
[370052284,1751866235316,-500.42383133,0.00019821,2]
[370052285,1751866235326,-509.57661228,0.00019821,2]
[370052286,1751866235335,-1000.0,0.00019821,2]
[370052287,1751866235344,-1546.12331568,0.00019866,2]
[370052288,1751866235354,-3627.385112,0.0002,2]
[370052289,1751866235369,-333.54510656,0.00020039,2]
[370052290,1751866235380,-809.94,0.00020039,2]
[370052291,1751866235390,-460.0,0.00020039,2]
[370052292,1751866235399,-644.53,0.0002004,2]
[370052293,1751866235408,-460.0,0.0002004,2]
[370052294,1751866235418,-636.5,0.00020043,2]
[370052295,1751866235427,-460.0,0.00020043,2]
[370052296,1751866235436,-774.34,0.00020043,2]
[370052297,1751866235446,-1546.12331568,0.00020107,2]
[370052298,1751866235455,-1645.62114256,0.00020162,2]
[370052299,1751866235465,-587.0,0.00020309,2]
[370052300,1751866235475,-809.94,0.00020313,2]
[370052301,1751866235484,-460.0,0.00020313,2]
[370052302,1751866235493,-644.53,0.00020314,2]
[370052303,1751866235503,-460.0,0.00020314,2]
[370052304,1751866235512,-636.5,0.00020317,2]
[370052305,1751866235522,-409.69866821,0.00020317,2]
[370052306,1751866235531,-774.34,0.00020317,2]
[370052307,1751866235541,-1546.12331568,0.00020348,3]
[370052308,1751866235551,-243.69779242,0.00020358,2]
[370052309,1751866235560,-1500.0,0.00020368,2]
[370052310,1751866235570,-160.0,0.00020521,2]
[370052311,1751866235579,-848.27993403,0.00020521,2]
[370052312,1751866235588,-837.79946008,0.00020521,2]
[370052313,1751866235599,-160.0,0.00020521,2]
[370052314,1751866235608,-214.06929976,0.00020521,2]
[370052315,1751866235618,-165.412141,0.00020548,2]
[370052316,1751866235627,-809.94,0.00020587,2]
[370052317,1751866235637,-495.23582667,0.00020587,2]
[370052318,1751866235646,-644.53,0.00020588,2]
[370052319,1751866235657,-460.0,0.00020588,2]
[370052320,1751866235667,-1546.12331568,0.0002059,3]
[370052321,1751866235676,-636.5,0.00020591,2]
[370052322,1751866235686,-774.34,0.00020591,2]
[370052323,1751866235696,-626.22,0.000206,2]
[370052324,1751866235705,-500.0,0.0002066,2]
[370052325,1751866235715,-264.324,0.00020795,2]
[370052326,1751866235724,-1546.12331568,0.00020831,4]
[370052327,1751866235733,-158.74,0.00020841,2]
[370052328,1751866235743,-214.06929976,0.00020841,2]
[370052329,1751866235752,-245.54218751,0.00020849,2]
[370052330,1751866235761,-412.97762017,0.00020849,2]
[370052331,1751866235771,-809.94,0.00020861,2]
[370052332,1751866235780,-644.53,0.00020862,2]
[370052333,1751866235903,-460.0,0.00020862,2]
[370052334,1751866235912,-636.5,0.00020865,2]
[370052335,1751866235921,-774.34,0.00020865,2]
[370052336,1751866235930,-151.0,0.000209,4]
[370052337,1751866235939,-2000.0,0.00020916,2]
[370052338,1751866235949,-1546.12331568,0.00021072,4]
[370052339,1751866235958,-809.94,0.00021135,2]
[370052340,1751866235967,-644.53,0.00021136,2]
[370052341,1751866235976,-460.0,0.00021136,2]
[370052342,1751866235986,-636.5,0.00021139,2]
[370052343,1751866235995,-774.34,0.00021139,2]
[370052344,1751866236005,-1546.12331568,0.00021314,5]
[370052345,1751866236014,-809.94,0.00021409,2]
[370052346,1751866236023,-644.53,0.0002141,2]
[370052347,1751866236033,-460.0,0.0002141,2]
[370052348,1751866236042,-29719.38213115,0.00021412,2]
[370052349,1751866236051,-636.5,0.00021413,2]
[370052350,1751866236060,-774.34,0.00021413,2]
[370052351,1751866236070,-500.32412248,0.00021464,2]
[370052352,1751866236082,-6521.46888855,0.00021498,2]
[370052353,1751866236091,-500.0,0.00021527,2]
[370052354,1751866236101,-150.0,0.00021534,2]
[370052355,1751866236110,-1546.12331568,0.00021555,5]
[370052356,1751866236119,-1645.62114256,0.00021641,2]
[370052357,1751866236128,-809.94,0.00021683,2]
[370052358,1751866236137,-644.53,0.00021684,2]
[370052359,1751866236146,-460.0,0.00021684,2]
[370052360,1751866236156,-636.5,0.00021687,2]
[370052361,1751866236165,-774.34,0.00021687,2]
[370052362,1751866236174,-1546.12331568,0.00021797,6]
[370052363,1751866236183,-500.0,0.00021917,2]
[370052364,1751866236192,-500.0,0.00021917,2]
[370052365,1751866236202,-200.33534176,0.00021918,2]
[370052366,1751866236211,-500.0,0.00021918,2]
[370052367,1751866236219,-296.12568226,0.00021918,2]
[370052368,1751866236229,-500.0,0.00021918,2]
[370052369,1751866236238,-809.94,0.00021957,2]
[370052370,1751866236248,-644.53,0.00021958,2]
[370052371,1751866236257,-460.0,0.00021958,2]
[370052372,1751866236267,-636.5,0.00021961,2]
[370052373,1751866236276,-774.34,0.00021961,2]
[370052374,1751866236286,-502.94698062,0.00021973,2]
[370052375,1751866236295,-501.07989023,0.00021973,2]
[370052376,1751866236304,-500.0,0.00021973,2]
[370052377,1751866236313,-184.73947693,0.00021973,2]
[370052378,1751866236329,-73.9897784,0.00021973,2]
[370052379,1751866236339,-501.0614704,0.00021973,2]
[370052380,1751866236349,-500.0,0.00021973,2]
[370052381,1751866236358,-500.0,0.00021973,2]
[370052382,1751866236367,-500.0,0.00021973,2]
[370052383,1751866236376,-357.27689612,0.00021973,2]
[370052384,1751866236388,-142.72310388,0.00021973,2]
[370052385,1751866236397,-120.61565468,0.00021973,2]
[370052386,1751866236408,-379.38434532,0.00021973,2]
[370052387,1751866236417,-500.0,0.00021973,2]
[370052388,1751866236426,-2.08179364,0.00021973,2]
[370052389,1751866239752,-460.0,0.00017027,2]
[370052390,1751866239761,-460.0,0.00017301,2]
[370052391,1751866239771,-479.22,0.00017575,2]
[370052392,1751866239780,-500.0,0.00021917,2]
[370052393,1751866239791,-500.0,0.00021917,2]
[370052394,1751866239800,-500.0,0.00021917,2]
[370052395,1751866239809,-500.0,0.00021917,2]
[370052396,1751866239818,-500.0,0.00021917,2]
[370052397,1751866239827,-104.24792881,0.00021917,2]
[370052398,1751866239838,-395.75207119,0.00021917,2]
[370052399,1751866239847,-531.5159971,0.00021917,2]
[370052400,1751866239856,-497.91820636,0.00021973,2]
[370052401,1751866239865,-600.0,0.00021973,2]
[370052402,1751866239875,-500.0,0.00021973,2]
[370052403,1751866239884,-500.0,0.00021973,2]
[370052404,1751866239893,-500.0,0.00021973,2]
[370052405,1751866239902,-500.0,0.00021973,2]
[370052406,1751866239911,-974.81821405,0.0002199,10]
[370052407,1751866239923,-2949.30178595,0.0002199,10]
[370052408,1751866239932,-133768.55,0.00022,2]
[370052409,1751866239943,-3600.55,0.00022,7]
[370052410,1751866239952,-52703.04,0.00022,7]
[370052411,1751866239962,-150.0,0.00022,2]
[370052412,1751866239971,-5884.09107608,0.00022,2]
[370052413,1751866239980,-352.20133888,0.00022,2]
[370052414,1751866239989,-20120.40074165,0.00022,2]
[370052415,1751866239998,-549.71718887,0.00022,2]
[370052416,1751866240007,-34849.95938831,0.00022,2]
[370052417,1751866240017,-848.27993403,0.00022,7]
[370052418,1751866240026,-12584.46609586,0.00022,7]
[370052419,1751866240036,-214.06929976,0.00022,7]
[370052420,1751866240046,-1546.12331568,0.00022038,6]
[370052421,1751866240057,-823.0,0.00022181,2]
[370052422,1751866240170,-809.94,0.00022231,2]
[370052423,1751866240179,-644.53,0.00022232,2]
[370052424,1751866240188,-460.0,0.00022232,2]
[370052425,1751866240198,-774.34,0.00022235,2]
[370052426,1751866240207,-76980.98637407,0.00022265,2]
[370052427,1751866240216,-1546.12331568,0.00022279,6]
[370052428,1751866240226,-130467.78417314,0.0002249,7]
[370052429,1751866240235,-1005.08652503,0.000225,2]
[370052430,1751866240244,-809.94,0.00022505,2]
[370052431,1751866240254,-644.53,0.00022506,2]
[370052432,1751866240264,-460.0,0.00022506,2]
[370052433,1751866240273,-774.34,0.00022509,2]
[370052434,1751866240282,-1001.71811265,0.00022521,2]
[370052435,1751866240292,-503.73528866,0.00022521,2]
[370052436,1751866240301,-1001.43177517,0.00022521,2]
[370052437,1751866240311,-1200.0,0.00022521,2]
[370052438,1751866240320,-1546.12331568,0.00022521,7]
[370052439,1751866240329,-626.22,0.000226,7]
[370052440,1751866240338,-333.426875,0.00022603,2]
[370052441,1751866240348,-2534.78,0.0002262,4]
[370052442,1751866240357,-2534.78,0.0002272,3]
[370052443,1751866240366,-1546.12331568,0.00022762,7]
[370052444,1751866240375,-1038.00452864,0.0002277,2]
[370052445,1751866240384,-809.94,0.00022779,2]
[370052446,1751866240394,-644.53,0.0002278,2]
[370052447,1751866240404,-592.11603349,0.0002278,2]
[370052448,1751866240413,-774.34,0.00022783,2]
[370052449,1751866240422,-2534.78,0.0002282,2]
[370052450,1751866240432,-97894.04805221,0.00022919,2]
[370052451,1751866240441,-2534.78,0.0002292,4]
[370052452,1751866240451,-160.0,0.00023,2]
[370052453,1751866240461,-1546.12331568,0.00023003,8]
[370052454,1751866240470,-2534.78,0.0002302,6]
[370052455,1751866240479,-809.94,0.00023053,2]
[370052456,1751866240489,-644.53,0.00023054,2]
[370052457,1751866240498,-774.34,0.00023057,2]
[370052458,1751866240508,-1800.0,0.00023068,2]
[370052459,1751866240517,-2534.78,0.0002312,3]
[370052460,1751866240527,-1645.62114256,0.0002312,2]
[370052461,1751866240536,-500.0,0.00023173,2]
[370052462,1751866240546,-133768.55,0.000232,2]
[370052463,1751866240556,-3600.55,0.000232,7]
[370052464,1751866240565,-230.48668418,0.000232,3]
[370052465,1751866240575,-52703.04,0.000232,7]
[370052466,1751866240585,-848.27993403,0.000232,3]
[370052467,1751866240594,-2534.78,0.0002322,6]
[370052468,1751866240604,-1546.12331568,0.00023245,8]
[370052469,1751866240613,-150.0,0.00023259,2]
[370052470,1751866240623,-2534.78,0.0002332,3]
[370052471,1751866240632,-809.95400077,0.00023327,2]
[370052472,1751866240642,-644.72899759,0.00023328,2]
[370052473,1751866240651,-774.55,0.00023331,2]
[370052474,1751866240664,-215.21338352,0.000234,3]
[370052475,1751866240673,-12584.46609586,0.000234,3]
[370052476,1751866240683,-160.0,0.000234,3]
[370052477,1751866240692,-2534.78,0.0002342,7]
[370052478,1751866240703,-1546.12331568,0.00023486,9]
[370052479,1751866240712,-2534.78,0.0002352,2]
[370052480,1751866240721,-767.98018654,0.00023596,2]
[370052481,1751866240729,-1500.0,0.00023596,2]
[370052482,1751866240740,-1500.0,0.00023596,2]
[370052483,1751866240750,-1500.0,0.00023596,2]
[370052484,1751866240759,-1500.0,0.00023596,2]
[370052485,1751866240768,-25000.0,0.00023596,2]
[370052486,1751866240777,-1500.0,0.00023596,2]
[370052487,1751866240786,-1500.0,0.00023596,2]
[370052488,1751866240796,-1500.0,0.00023596,2]
[370052489,1751866240805,-1500.0,0.00023596,2]
[370052490,1751866240815,-2386.17266523,0.00023596,2]
[370052491,1751866240824,-1500.0,0.00023596,2]
[370052492,1751866240833,-1500.0,0.00023596,2]
[370052493,1751866240842,-1500.0,0.00023596,2]
[370052494,1751866240851,-207.4,0.00023596,2]
[370052495,1751866240860,-151.0,0.00023596,2]
[370052496,1751866240869,-151.0,0.00023596,2]
[370052497,1751866240878,-151.0,0.00023596,2]
[370052498,1751866240887,-151.0,0.00023596,2]
[370052499,1751866240896,-151.0,0.00023596,7]
[370052500,1751866240905,-151.0,0.00023596,7]
[370052501,1751866240915,-152.164207,0.00023596,7]
[370052502,1751866240924,-151.0,0.00023596,7]
[370052503,1751866240933,-151.0,0.00023596,7]
[370052504,1751866240942,-240.041284,0.00023596,7]
[370052505,1751866240951,-240.041284,0.00023596,7]
[370052506,1751866240960,-151.0,0.00023596,7]
[370052507,1751866240970,-151.0,0.00023596,7]
[370052508,1751866240979,-2400.0,0.00023616,2]
[370052509,1751866240988,-2534.78,0.0002362,7]
[370052510,1751866240998,-500.0,0.00023719,2]
[370052511,1751866241007,-2534.78,0.0002372,4]
[370052512,1751866241016,-1546.12331568,0.00023728,9]
[370052513,1751866241025,-2534.78,0.0002382,7]
[370052514,1751866241035,-2534.78,0.0002392,6]
[370052515,1751866241045,-1546.12331568,0.00023969,10]
[370052516,1751866241054,-160.0,0.00024,7]
[370052517,1751866241063,-230.48668418,0.00024,7]
[370052518,1751866241073,-626.22,0.00024,7]
[370052519,1751866241082,-215.21338352,0.00024,7]
[370052520,1751866241092,-160.0,0.00024,7]
[370052521,1751866241101,-2534.78,0.0002402,4]
[370052522,1751866241110,-2534.78,0.0002412,7]
[370052523,1751866241119,-152.647491,0.0002412,7]
[370052524,1751866241128,-151.0,0.0002412,7]
[370052525,1751866241137,-151.0,0.0002412,7]
[370052526,1751866241146,-25000.0,0.00024144,2]
[370052527,1751866241155,-151.0,0.00024144,7]
[370052528,1751866241164,-380.486097,0.00024144,7]
[370052529,1751866241174,-380.486097,0.00024144,7]
[370052530,1751866241183,-151.0,0.00024144,2]
[370052531,1751866241193,-151.0,0.00024144,2]
[370052532,1751866241202,-151.0,0.00024144,7]
[370052533,1751866241212,-3000.0,0.00024164,2]
[370052534,1751866241221,-1546.12331568,0.0002421,10]
[370052535,1751866241231,-2534.78,0.0002422,5]
[370052536,1751866241240,-1095.0,0.00024226,2]
[370052537,1751866241251,-151.0,0.00024285,7]
[370052538,1751866241260,-3600.55,0.000243,7]
[370052539,1751866241270,-52703.04,0.000243,7]
[370052540,1751866241280,-2534.78,0.0002432,2]
[370052541,1751866241289,-3967.07919496,0.0002439,2]
[370052542,1751866241298,-2534.78,0.0002442,2]
[370052543,1751866241308,-151.0,0.00024428,7]
[370052544,1751866241317,-151.0,0.00024428,7]
[370052545,1751866241326,-173.199327,0.00024428,7]
[370052546,1751866241335,-1546.12331568,0.00024452,11]
[370052547,1751866241345,-9781.80335578,0.000245,2]
[370052548,1751866241354,-200.0,0.000245,2]
[370052549,1751866241364,-2534.78,0.0002452,4]
[370052550,1751866241373,-318.9845552,0.00024548,2]
[370052551,1751866241382,-576.0368563,0.00024548,2]
[370052552,1751866241392,-576.0368563,0.00024548,2]
[370052553,1751866241402,-576.0368563,0.00024548,2]
[370052554,1751866241411,-576.0368563,0.00024548,2]
[370052555,1751866241420,-355.527084,0.00024548,2]
[370052556,1751866241430,-535.9134331,0.00024548,2]
[370052557,1751866241439,-512.7884035,0.00024568,2]
[370052558,1751866241450,-714.2691288,0.00024592,2]
[370052559,1751866241459,-2534.78,0.0002462,4]
[370052560,1751866241469,-1983.580973,0.00024632,4]
[370052561,1751866241478,-151.0,0.00024632,7]
[370052562,1751866241488,-152.19607,0.00024632,7]
[370052563,1751866241498,-151.0,0.00024632,7]
[370052564,1751866241507,-151.0,0.00024632,7]
[370052565,1751866241517,-151.0,0.00024632,7]
[370052566,1751866241526,-151.0,0.00024632,7]
[370052567,1751866241536,-151.0,0.00024632,7]
[370052568,1751866241546,-196.196642,0.00024632,7]
[370052569,1751866241555,-151.0,0.00024644,7]
[370052570,1751866241564,-86335.33365112,0.0002465,2]
[370052571,1751866241574,-501.10567785,0.0002465,2]
[370052572,1751866241583,-300.0,0.00024657,4]
[370052573,1751866241592,-300.0,0.00024657,4]
[370052574,1751866241601,-300.0,0.00024657,4]
[370052575,1751866241611,-300.0,0.00024657,4]
[370052576,1751866241621,-300.0,0.00024657,4]
[370052577,1751866241630,-300.0,0.00024657,4]
[370052578,1751866241639,-327.85232221,0.00024657,4]
[370052579,1751866241648,-200.0,0.00024657,2]
[370052580,1751866241657,-210.00855503,0.00024657,2]
[370052581,1751866241667,-200.0,0.00024658,15]
[370052582,1751866241676,-380.0,0.00024658,2]
[370052583,1751866241685,-714.26912878,0.00024667,2]
[370052584,1751866241695,-25000.0,0.00024692,2]
[370052585,1751866241704,-1546.12331568,0.00024693,11]
[370052586,1751866241713,-3208.07560296,0.00024712,2]
[370052587,1751866241722,-2534.78,0.0002472,2]
[370052588,1751866241731,-714.26912878,0.00024742,2]
[370052589,1751866241740,-2153.0,0.00024743,2]
[370052590,1751866241749,-646.0,0.00024743,2]
[370052591,1751866241759,-151.924,0.00024743,2]
[370052592,1751866241768,-429.128,0.00024743,2]
[370052593,1751866241777,-7852.31582868,0.000248,2]
[370052594,1751866241786,-27943.43460803,0.000248,2]
[370052595,1751866241796,-133768.55,0.000248,2]
[370052596,1751866241805,-151.0,0.000248,7]
[370052597,1751866241814,-151.0,0.000248,7]
[370052598,1751866241823,-154.553547,0.000248,7]
[370052599,1751866241832,-399.582741,0.000248,7]
[370052600,1751866241842,-151.0,0.000248,7]
[370052601,1751866241852,-380.486097,0.000248,7]
[370052602,1751866241861,-380.486097,0.000248,7]
[370052603,1751866241871,-151.0,0.000248,7]
[370052604,1751866241881,-151.0,0.000248,2]
[370052605,1751866241890,-151.0,0.000248,2]
[370052606,1751866241899,-151.0,0.000248,7]
[370052607,1751866241908,-151.0,0.000248,7]
[370052608,1751866241917,-151.0,0.000248,7]
[370052609,1751866241927,-151.0,0.000248,7]
[370052610,1751866241936,-151.0,0.000248,7]
[370052611,1751866241945,-151.0,0.000248,7]
[370052612,1751866241954,-186.403119,0.000248,7]
[370052613,1751866241963,-186.403119,0.000248,7]
[370052614,1751866241973,-151.0,0.000248,7]
[370052615,1751866241982,-170.349019,0.000248,7]
[370052616,1751866241992,-17119.258705,0.000248,2]
[370052617,1751866242001,-151.0,0.000248,7]
[370052618,1751866242010,-132527.54207327,0.000248,7]
[370052619,1751866242019,-151.0,0.000248,7]
[370052620,1751866242028,-240.041284,0.000248,7]
[370052621,1751866242037,-240.041284,0.000248,7]
[370052622,1751866242046,-151.0,0.000248,7]
[370052623,1751866242055,-151.0,0.000248,7]
[370052624,1751866242064,-714.26912878,0.00024817,2]
[370052625,1751866242073,-2534.78,0.0002482,5]
[370052626,1751866242083,-500.0,0.00024873,2]
[370052627,1751866242092,-6780.88,0.0002488,10]
[370052628,1751866242101,-5650.73,0.0002488,10]
[370052629,1751866242110,-4708.94,0.0002488,10]
[370052630,1751866242119,-5737.36167872,0.00024888,2]
[370052631,1751866242129,-503.65606311,0.00024888,2]
[370052632,1751866242138,-344.89181997,0.00024888,2]
[370052633,1751866242147,-1378.18771262,0.00024888,2]
[370052634,1751866242156,-2468.58466839,0.00024888,2]
[370052635,1751866242165,-451.16837197,0.00024888,2]
[370052636,1751866242174,-714.26912878,0.00024892,2]
[370052637,1751866242184,-269766.50594,0.00024899,4]
[370052638,1751866242194,-326.32,0.000249,4]
[370052639,1751866242203,-151.0,0.000249,7]
[370052640,1751866242212,-151.0,0.000249,7]
[370052641,1751866242221,-151.0,0.000249,7]
[370052642,1751866242231,-151.0,0.000249,7]
[370052643,1751866242240,-154.0,0.000249,3]
[370052644,1751866242249,-154.0,0.000249,3]
[370052645,1751866242258,-154.0,0.000249,3]
[370052646,1751866242267,-154.0,0.000249,3]
[370052647,1751866242277,-154.0,0.000249,3]
[370052648,1751866242286,-154.0,0.000249,3]
[370052649,1751866242296,-318.0,0.000249,3]
[370052650,1751866242306,-318.0,0.000249,3]
[370052651,1751866242315,-318.0,0.000249,3]
[370052652,1751866242324,-318.0,0.000249,3]
[370052653,1751866242333,-277.85783841,0.000249,3]
[370052654,1751866242342,-151.0,0.000249,7]
[370052655,1751866242352,-151.0,0.000249,7]
[370052656,1751866242362,-151.0,0.000249,7]
[370052657,1751866242372,-151.0,0.000249,7]
[370052658,1751866242381,-151.905852,0.000249,7]
[370052659,1751866242390,-282.960551,0.000249,7]
[370052660,1751866242399,-151.0,0.000249,7]
[370052661,1751866242409,-151.0,0.000249,7]
[370052662,1751866242418,-151.0,0.000249,7]
[370052663,1751866242427,-156.041809,0.000249,7]
[370052664,1751866242436,-160.0,0.000249,10]
[370052665,1751866242445,-151.0,0.000249,7]
[370052666,1751866242454,-290.549807,0.000249,7]
[370052667,1751866242464,-151.0,0.000249,7]
[370052668,1751866242473,-151.0,0.000249,7]
[370052669,1751866242483,-151.0,0.000249,7]
[370052670,1751866242493,-151.0,0.000249,7]
[370052671,1751866242502,-399.582741,0.000249,7]
[370052672,1751866242511,-151.0,0.000249,7]
[370052673,1751866242520,-151.0,0.000249,7]
[370052674,1751866242529,-151.0,0.000249,7]
[370052675,1751866242538,-153.169236,0.000249,7]
[370052676,1751866242548,-151.0,0.000249,7]
[370052677,1751866242557,-151.0,0.000249,7]
[370052678,1751866242567,-151.0,0.000249,7]
[370052679,1751866242576,-157.0,0.000249,3]
[370052680,1751866242585,-157.0,0.000249,3]
[370052681,1751866242595,-151.0,0.000249,7]
[370052682,1751866242604,-157.13838285,0.000249,3]
[370052683,1751866242613,-201.40044229,0.000249,3]
[370052684,1751866242623,-154.0,0.000249,3]
[370052685,1751866242739,-156.90230019,0.000249,3]
[370052686,1751866242748,-154.67956278,0.000249,3]
[370052687,1751866242757,-380.486097,0.000249,7]
[370052688,1751866242766,-380.486097,0.000249,7]
[370052689,1751866242775,-151.0,0.000249,7]
[370052690,1751866242784,-151.0,0.000249,2]
[370052691,1751866242794,-151.0,0.000249,2]
[370052692,1751866242804,-151.0,0.000249,7]
[370052693,1751866242816,-151.0,0.000249,7]
[370052694,1751866242825,-151.0,0.000249,7]
[370052695,1751866242834,-231.179746,0.000249,7]
[370052696,1751866242843,-151.0,0.000249,7]
[370052697,1751866242853,-151.0,0.000249,7]
[370052698,1751866242862,-152.532002,0.000249,7]
[370052699,1751866242871,-4479.85364045,0.000249,2]
[370052700,1751866242881,-4479.85364045,0.000249,2]
[370052701,1751866242890,-151.0,0.000249,7]
[370052702,1751866242900,-151.0,0.000249,7]
[370052703,1751866242909,-186.403119,0.000249,7]
[370052704,1751866242918,-186.403119,0.000249,7]
[370052705,1751866242927,-186.403119,0.000249,7]
[370052706,1751866242936,-186.403119,0.000249,7]
[370052707,1751866242946,-151.0,0.000249,7]
[370052708,1751866242955,-151.0,0.000249,7]
[370052709,1751866242964,-221472.25991762,0.000249,2]
[370052711,1751866243041,-2394.60558874,0.000249,2]
[370052712,1751866243052,-624.20491612,0.000249,2]
[370052713,1751866243062,-2020.65807544,0.000249,2]
[370052714,1751866243073,-1177.51551664,0.000249,2]
[370052716,1751866243291,-12336.39655264,0.000249,2]
[370052717,1751866243306,-91713.43083511,0.000249,2]
[370052730,1751866243761,-221.81,0.00017029,2]
[370052731,1751866243771,-227.97335721,0.00023596,2]
[370052732,1751866243780,-15416.83945362,0.000249,2]
[370052733,1751866243792,-1774.685808,0.000249,2]
[370052734,1751866243804,-676.49551176,0.000249,2]
[370052735,1751866243815,-482.22164317,0.000249,2]
[370052736,1751866243826,-3727.08478015,0.000249,2]
[370052756,1751866246340,-500.0,0.00018672,2]
[370052758,1751866246350,-555.47511707,0.00018672,2]
[370052760,1751866246360,-151.0,0.00023596,7]
[370052762,1751866246369,-151.0,0.000248,7]
[370052764,1751866246379,-2333.98356081,0.000249,2]
[370052766,1751866246390,-28033.10972154,0.000249,2]
[370052774,1751866246453,-478653.23517264,0.000249,2]
[370052776,1751866246463,-151.0,0.000249,7]
[370052778,1751866246472,-151.0,0.000249,7]
[370052780,1751866246481,-151.0,0.000249,7]
[370052782,1751866246490,-151.0,0.000249,7]
[370052783,1751866246499,-240.041284,0.000249,7]
[370052785,1751866246509,-240.041284,0.000249,7]
[370052787,1751866246519,-240.041284,0.000249,7]
[370052789,1751866246528,-240.041284,0.000249,7]
[370052792,1751866246538,-151.0,0.000249,7]
[370052793,1751866246547,-151.0,0.000249,7]
[370052796,1751866246557,-151.0,0.000249,7]
[370052798,1751866246567,-151.0,0.000249,7]
[370052799,1751866246576,-151.0,0.000249,7]
[370052801,1751866246586,-151.0,0.000249,7]
[370052803,1751866246595,-2534.78,0.0002492,6]
[370052806,1751866246605,-500.8130656,0.0002493,9]
[370052807,1751866246615,-198.0,0.00024932,7]
[370052810,1751866246624,-1546.12331568,0.00024934,12]
[370052812,1751866246634,-500.0,0.00024935,9]
[370052813,1751866246643,-215.0738,0.00024965,2]
[370052815,1751866246652,-714.26912878,0.00024966,2]
[370052818,1751866246662,-168.0,0.00024974,2]
[370052819,1751866246676,-53275.19827046,0.0002499,2]
[370052822,1751866246690,-24640.53701828,0.0002499,2]
[370052824,1751866246701,-770.18575528,0.0002499,2]
[370052826,1751866246713,-6059.204464,0.0002499,2]
[370052827,1751866246725,-702.06664328,0.0002499,2]
[370052830,1751866992799,3510.8604858,0.00016021,2]
[370052831,1751867041377,24900.0,0.00016024,2]